fUST/lending_fUST_20241228
["ID","MTS","AMOUNT","RATE_DAILY","PERIOD"]
[346914468,1735370889751,236.00583715,0.00020459,120]
[346914469,1735370895652,231.5241236,0.00020459,60]
[346914470,1735370896048,188.0,0.0002,120]
[346914471,1735370898333,1622.57601051,0.0002,120]
[346914472,1735370899672,490.01201252,0.00020459,120]
[346914473,1735370907355,672.23639854,0.00020459,120]
[346914474,1735370908773,999.11237918,0.00020459,60]
[346914475,1735370910379,4846.15092713,0.0002,120]
[346914476,1735370910867,160.0,0.00021554,120]
[346914477,1735370911027,314.87104004,0.00020459,120]
[346914478,1735370912780,184.16626368,0.00023,120]
[346914479,1735370913062,1580.76258876,0.00020459,120]
[346914480,1735370913570,2524.13277555,0.00020459,120]
[346914481,1735370914037,939.47360653,0.00020459,120]
[346914483,1735370915516,413.3340504,0.00020459,120]
[346914484,1735370915545,331.51508884,0.00020459,120]
[346914486,1735370916191,1512.90667764,0.00020459,120]
[346914487,1735370916247,590.52214549,0.00020459,120]
[346914488,1735370916696,308.80121713,0.00020459,120]
[346914490,1735370917120,1579.80499268,0.00020459,120]
[346914491,1735370917159,182.04483741,0.00020459,120]
[346914492,1735370917343,211.26914235,0.00020459,120]
[346914493,1735370918070,195.37056099,0.00020459,120]
[346914494,1735370918105,634.17655892,0.00020459,120]
[346914495,1735370918139,178.99012594,0.00020459,120]
[346914496,1735370918618,550.25,0.00020459,120]
[346914497,1735370918652,310.16119675,0.00020459,120]
[346914498,1735370918686,298.38099389,0.00020459,120]
[346914499,1735370918722,1043.75087685,0.00020459,120]
[346914500,1735370952594,500.0,0.00020459,120]
[346914501,1735371030777,160.0,0.00022429,120]
[346914561,1735371032089,-160.26850028,0.00013833,2]
[346914563,1735371032099,-160.26850028,0.00013973,2]
[346914565,1735371032108,-1308.25992058,0.00014153,2]
[346914567,1735371032117,-394.0,0.00014153,2]
[346914569,1735371032127,-1225.0904025,0.00014317,2]
[346914572,1735371032137,-914.145,0.000152,2]
[346914575,1735371032146,-191.43045937,0.0001563,2]
[346914578,1735371032154,-147.10687568,0.00015654,2]
[346914750,1735371038109,-152.89312432,0.00015497,2]
[346914752,1735371038119,-152.89312432,0.00015654,2]
[346914753,1735371038129,-534.78375136,0.00015655,2]
[346914756,1735371040055,-379.57930169,0.00015655,2]
[346914757,1735371040070,-5678.02596296,0.00015655,2]
[346914765,1735371046121,-2110.0,0.00013666,2]
[346914766,1735371046130,-2233.07614767,0.00015655,2]
[346914767,1735371046141,-500.0,0.0001573,2]
[346914768,1735371046150,-500.81887981,0.00015899,2]
[346914769,1735371046160,-270.295,0.00015899,2]
[346914770,1735371046170,-500.0,0.00015899,2]
[346914771,1735371046181,-312.53330893,0.00015899,2]
[346914772,1735371119643,96761.0,0.00020717,120]
[346914773,1735371210711,160.0,0.00021348,120]
[346914774,1735371274297,500.0,0.00020737,120]
[346914775,1735371331273,160.0,0.00019763,120]
[346914776,1735371338265,5947.0,0.00025,120]
[346914777,1735371545814,1384.23,0.00025,120]
[346914778,1735371554607,500.0,0.00020737,120]
[346914779,1735371853077,500.0,0.00020738,120]
[346914780,1735371933144,-2958.58825608,0.00012442,2]
[346914782,1735371989384,2000.0,0.00025,120]
[346914783,1735372043376,-277.99055866,0.00012318,2]
[346914784,1735372044107,-2016.20864224,0.00012318,2]
[346914785,1735372051100,-1197.405552,0.00012318,2]
[346914786,1735372051123,-300.0,0.00012952,2]
[346914787,1735372051145,-1304.91517498,0.00012953,2]
[346914788,1735372097062,1394.46248177,0.00020738,60]
[346914789,1735372153545,500.0,0.00020738,120]
[346914790,1735372169273,-472.29491726,0.00012823,2]
[346914818,1735372232351,-300.0,0.000128,2]
[346914819,1735372232361,-4672.98291674,0.00012823,2]
[346914820,1735372232370,-300.0,0.00012952,2]
[346914821,1735372232379,-233.17774973,0.00012953,2]
[346914822,1735372232391,-1065.73824867,0.00012953,2]
[346914828,1735372232438,-975.74278895,0.00012953,2]
[346914867,1735372238142,-266.41692632,0.00012823,2]
[346914868,1735372238191,-2327.83169333,0.00012823,2]
[346914869,1735372238201,-975.26386259,0.00012953,2]
[346914910,1735372240296,-1895.35518406,0.00012953,2]
[346914912,1735372240306,-2108.0,0.0001369,2]
[346914914,1735372240315,-534.0,0.0001369,2]
[346914916,1735372240324,-2353.0,0.0001369,2]
[346914918,1735372240333,-394.0,0.0001369,2]
[346914919,1735372240343,-400.0,0.00013973,2]
[346914921,1735372240352,-1267.9811037,0.00014132,2]
[346914923,1735372240361,-500.0,0.00014204,2]
[346914925,1735372240370,-500.0,0.00014204,2]
[346914926,1735372240379,-500.0,0.00014204,2]
[346914928,1735372240388,-500.0,0.00014204,2]
[346914929,1735372240397,-6666.00624202,0.00014205,2]
[346914930,1735372240406,-300.0,0.00014205,2]
[346914931,1735372240415,-500.0,0.00014472,2]
[346914932,1735372240424,-500.0,0.00014478,2]
[346914933,1735372240433,-500.0,0.00014478,2]
[346914934,1735372240442,-192.58,0.00014746,2]
[346914935,1735372240451,-500.0,0.00014752,2]
[346914936,1735372240460,-500.0,0.00014752,2]
[346914937,1735372240469,-988.92678359,0.00014926,2]
[346914938,1735372240478,-6450.19300898,0.00014953,2]
[346914939,1735372240488,-500.0,0.00015026,2]
[346914940,1735372240497,-500.0,0.00015026,2]
[346914941,1735372240506,-486.16621697,0.000152,2]
[346914960,1735372243876,-389.95278303,0.000152,2]
[346914961,1735372243886,-500.0,0.000153,2]
[346914962,1735372243896,-91.03721697,0.000153,2]
[346914993,1735372258606,2487.07058,0.00025,120]
[346914995,1735372450821,500.0,0.00020738,120]
[346914996,1735372634079,160.0,0.00013,6]
[346914997,1735372705838,652.0,0.00025,120]
[346914998,1735372755367,500.0,0.00020736,120]
[346914999,1735372891282,160.0,0.00023641,120]
[346915000,1735372951273,160.0,0.00023347,120]
[346915001,1735373075277,500.0,0.00020774,120]
[346915002,1735373132065,160.0,0.0002405,120]
[346915003,1735373137142,-300.0,0.00012173,2]
[346915004,1735373137163,-196.20516824,0.00012572,2]
[346915005,1735373137188,-300.0,0.000128,2]
[346915006,1735373137208,-86.82834506,0.00012952,2]
[346915007,1735373144096,-1903.00267381,0.00012952,2]
[346915009,1735373191393,160.0,0.00024146,120]
[346915010,1735373226102,-700.0,0.00012822,2]
[346915011,1735373226125,-657.63617737,0.00012952,2]
[346915012,1735373238109,-1510.07357685,0.00012852,2]
[346915013,1735373240087,-346.94197628,0.00012852,2]
[346915014,1735373240109,-807.64832771,0.00012952,2]
[346915017,1735373348315,-1058823.43944665,0.000125,4]
[346915018,1735373351557,500.0,0.00020774,120]
[346915044,1735373432384,-297.56008508,0.000125,2]
[346915046,1735373432395,-182.0395235,0.000125,2]
[346915150,1735373443356,-247.82587506,0.00012499,2]
[346915152,1735373443365,-35900.10260877,0.000125,2]
[346915154,1735373443375,-1131028.28939305,0.000125,4]
[346915156,1735373443386,-1467.75,0.000125,4]
[346915259,1735373446426,-8314.81753704,0.000125,4]
[346915261,1735373446441,-21999.70332,0.000125,4]
[346915295,1735373548495,152.0,0.00025,120]
[346915296,1735373654654,500.0,0.00020724,120]
[346915300,1735373977826,2118.0,0.00025,120]
[346915301,1735374004451,150.0,0.00025,120]
[346915333,1735374333214,-423.00270707,0.00011355,2]
[346915334,1735374333236,-423.00270707,0.0001147,2]
[346915335,1735374333257,-737.6069974,0.00011586,2]
[346915336,1735374333278,-294.5252103,0.00011669,2]
[346915337,1735374333300,-262.33,0.0001225,2]
[346915338,1735374333321,-242.75537197,0.000124,2]
[346915339,1735374333344,-1762.0656813,0.000124,2]
[346915340,1735374333366,-484.09645305,0.00012473,2]
[346915341,1735374353259,-161.78378594,0.00012225,2]
[346915342,1735374353280,-516.85277591,0.00012348,2]
[346915343,1735374353300,-16.85277591,0.00012473,2]
[346915344,1735374353320,-240.00849326,0.00012473,2]
[346915345,1735374429101,-621.52196748,0.00011556,2]
[346915346,1735374432123,-3729.11736852,0.00011556,2]
[346915347,1735374432145,-259.99150674,0.00012348,2]
[346915348,1735374432165,-500.0,0.00012473,2]
[346915349,1735374432186,-300.0,0.00012498,2]
[346915350,1735374432206,-595.4,0.00012499,2]
[346915351,1735374432226,-500.0,0.00012499,2]
[346915352,1735374432246,-500.0,0.00012499,2]
[346915353,1735374432265,-500.0,0.00012499,2]
[346915354,1735374432286,-550.09,0.00012499,2]
[346915355,1735374432308,-500.0,0.00012499,2]
[346915356,1735374432330,-500.0,0.00012499,2]
[346915357,1735374432352,-502.25290807,0.00012499,2]
[346915358,1735374432372,-500.0,0.00012499,2]
[346915359,1735374432394,-500.0,0.00012499,2]
[346915360,1735374432416,-500.0,0.00012499,2]
[346915361,1735374432437,-187.46669107,0.00012499,2]
[346915362,1735374432457,-500.0,0.00012499,2]
[346915363,1735374432477,-500.0,0.00012499,2]
[346915364,1735374432500,-500.0,0.00012499,2]
[346915365,1735374432523,-500.0,0.00012499,2]
[346915366,1735374432547,-500.0,0.00012499,2]
[346915367,1735374432568,-500.0,0.00012499,2]
[346915368,1735374432588,-500.0,0.00012499,2]
[346915369,1735374432608,-156.8975605,0.00012499,2]
[346915370,1735374432629,-500.0,0.00012499,2]
[346915371,1735374432649,-500.0,0.00012499,2]
[346915372,1735374432669,-500.0,0.00012499,2]
[346915373,1735374432692,-297.56008509,0.000125,2]
[346915374,1735374432715,-3379.38523154,0.000125,2]
[346915375,1735374441088,-450.0,0.00012499,2]
[346915376,1735374445095,-500.0,0.00012473,2]
[346915377,1735374445117,-77.17,0.00012499,2]
[346915378,1735374445138,-4.60516121,0.00012499,2]
[346915379,1735374514457,1210.36252305,0.00025,120]
[346915425,1735374632527,-488.0,0.00012499,2]
[346915426,1735374632585,-7.39483879,0.00012499,2]
[346915427,1735374632595,-500.0,0.00012499,2]
[346915428,1735374632605,-290.91776117,0.00012499,2]
[346915429,1735374632618,-500.0,0.00012499,2]
[346915430,1735374632628,-500.0,0.00012499,2]
[346915431,1735374632638,-500.0,0.00012499,2]
[346915432,1735374632648,-500.0,0.00012499,2]
[346915434,1735374632658,-500.0,0.00012499,2]
[346915436,1735374632668,-250.30539632,0.00012499,2]
[346915438,1735374632678,-16351.37845037,0.000125,2]
[346915440,1735374632687,-2721.80355336,0.000125,4]
[346915528,1735374638411,-9114.99988002,0.000125,4]
[346915531,1735374638423,-7351.28166407,0.000125,4]
[346915533,1735374638435,-475.67,0.000125,4]
[346915577,1735374638830,-4644.53792795,0.000125,4]
[346915580,1735374638844,-16937.43764542,0.000125,4]
[346915582,1735374638855,-430.4144,0.000125,4]
[346915679,1735374643560,-3900.0,0.000125,4]
[346915680,1735374643572,-11275.0237266,0.000125,4]
[346915681,1735374643585,-3800.0,0.000125,4]
[346915682,1735374643596,-292.326,0.000125,4]
[346915683,1735374643616,-3405.0,0.000125,4]
[346915711,1735374873053,500.0,0.00020698,120]
[346915869,1735375147202,663.572524,0.00025,120]
[346915871,1735375545157,-209.864,0.00012127,2]
[346915872,1735375545178,-209.864,0.0001225,2]
[346915873,1735375545199,-2705.93994329,0.00012285,2]
[346915874,1735375584495,-209.864,0.00012006,2]
[346915875,1735375584519,-1585.85911317,0.000124,2]
[346915876,1735375584542,-300.0,0.00012498,2]
[346915877,1735375584564,-500.0,0.00012499,2]
[346915878,1735375584593,-500.0,0.00012499,2]
[346915879,1735375584617,-500.0,0.00012499,2]
[346915880,1735375584643,-500.0,0.00012499,2]
[346915881,1735375584666,-500.0,0.00012499,2]
[346915882,1735375584689,-500.0,0.00012499,2]
[346915883,1735375584713,-500.0,0.00012499,2]
[346915884,1735375584738,-500.0,0.00012499,2]
[346915885,1735375584768,-500.0,0.00012499,2]
[346915886,1735375584794,-567.65,0.00012499,2]
[346915887,1735375584827,-505.2,0.00012499,2]
[346915888,1735375584855,-500.0,0.00012499,2]
[346915889,1735375584877,-500.0,0.00012499,2]
[346915890,1735375584901,-500.0,0.00012499,2]
[346915891,1735375584925,-341.6483018,0.00012499,2]
[346915892,1735375584948,-570.6,0.00012499,2]
[346915893,1735375584970,-500.0,0.00012499,2]
[346915894,1735375584993,-570.9304,0.00012499,2]
[346915895,1735375585017,-429.9560415,0.00012499,2]
[346915896,1735375585043,-17997.99185768,0.000125,2]
[346915897,1735375585179,-70420.30028585,0.000125,4]
[346915898,1735375625114,-277.99055866,0.00012375,2]
[346915899,1735375650223,-1081.00944134,0.00012375,2]
[346915900,1735375650246,-500.0,0.00012499,2]
[346915901,1735375650270,-349.03736707,0.00012499,2]
[346915902,1735375651093,-150.96263293,0.00012499,2]
[346915903,1735375651117,-500.0,0.00012499,2]
[346915904,1735375651141,-1933.2782181,0.000125,2]
[346915905,1735375768266,200.0,9.001e-05,2]
[346916039,1735375840691,-1192.2580604,0.00012375,2]
[346916046,1735375840747,-545.6247338,0.00012375,2]
[346916319,1735375843698,-3068.52171807,0.00012375,2]
[346916321,1735375843708,-3908.25018547,0.00012375,2]
[346916323,1735375843717,-34587.4185254,0.00012375,2]
[346916331,1735375843807,-130373.65325513,0.00012375,2]
[346916333,1735375843819,-13598.82677018,0.00012375,2]
[346916932,1735375877686,499.36,0.00024,120]
[346916933,1735376010317,1780.0,0.00025,120]
[346916938,1735376672411,500.0,0.00020688,120]
[346916939,1735376730154,-378.472,0.00011304,2]
[346916940,1735376730176,-378.472,0.00011418,2]
[346916941,1735376730200,-1049.30818953,0.00012128,2]
[346916942,1735376754093,-992.69181047,0.00012007,2]
[346916943,1735376754113,-114.60514583,0.00012128,2]
[346916944,1735376828100,-878.08666464,0.00012007,2]
[346916945,1735376828122,-539.15707065,0.00012128,2]
[346916946,1735376840083,-338.92959399,0.00012128,2]
[346916947,1735376840105,-893.20636044,0.00012226,2]
[346916948,1735376853092,-529.51122401,0.00012104,2]
[346916949,1735376853113,-635.94459205,0.00012226,2]
[346916950,1735376853134,-191.43045937,0.00012272,2]
[346916951,1735376853156,-123.41036931,0.000123,2]
[346916977,1735377031896,-196.20516824,0.00011907,2]
[346916979,1735377031906,-285.04983176,0.000123,2]
[346916985,1735377031953,-429.95794993,0.000123,2]
[346916987,1735377031962,-838.41815098,0.00012325,2]
[346916989,1735377031972,-838.41815098,0.0001235,2]
[346916991,1735377031981,-300.0,0.0001237,2]
[346916993,1735377031990,-500.0,0.00012371,2]
[346916995,1735377031999,-502.67659664,0.00012371,2]
[346916997,1735377032009,-500.0,0.00012371,2]
[346916999,1735377032018,-500.0,0.00012371,2]
[346917001,1735377032027,-500.0,0.00012371,2]
[346917003,1735377032036,-500.0,0.00012371,2]
[346917004,1735377032046,-500.0,0.00012371,2]
[346917005,1735377032055,-500.0,0.00012371,2]
[346917006,1735377032064,-500.0,0.00012371,2]
[346917008,1735377032074,-500.0,0.00012372,2]
[346917009,1735377032083,-500.0,0.00012372,2]
[346917010,1735377032092,-500.0,0.00012372,2]
[346917011,1735377032101,-500.0,0.00012372,2]
[346917012,1735377032111,-500.0,0.00012372,2]
[346917013,1735377032120,-500.0,0.00012372,2]
[346917014,1735377032129,-500.0,0.00012372,2]
[346917015,1735377032141,-500.0,0.00012372,2]
[346917016,1735377032151,-500.0,0.00012372,2]
[346917017,1735377032160,-500.0,0.00012372,2]
[346917018,1735377032169,-500.0,0.00012372,2]
[346917019,1735377032178,-500.0,0.00012372,2]
[346917020,1735377032188,-500.0,0.00012372,2]
[346917021,1735377032198,-504.98,0.00012372,2]
[346917022,1735377032207,-500.0,0.00012372,2]
[346917023,1735377032216,-500.0,0.00012372,2]
[346917024,1735377032225,-500.0,0.00012372,2]
[346917025,1735377032235,-611.93,0.00012372,2]
[346917026,1735377032244,-500.0,0.00012372,2]
[346917027,1735377032253,-500.0,0.00012372,2]
[346917028,1735377032262,-500.0,0.00012372,2]
[346917029,1735377032271,-500.0,0.00012372,2]
[346917030,1735377032280,-500.0,0.00012372,2]
[346917031,1735377032289,-500.0,0.00012372,2]
[346917032,1735377032299,-500.0,0.00012372,2]
[346917033,1735377032308,-500.0,0.00012372,2]
[346917034,1735377032318,-500.0,0.00012372,2]
[346917035,1735377032328,-500.0,0.00012372,2]
[346917036,1735377032337,-500.0,0.00012372,2]
[346917037,1735377032346,-500.0,0.00012372,2]
[346917038,1735377032356,-500.0,0.00012372,2]
[346917039,1735377032365,-500.0,0.00012372,2]
[346917040,1735377032375,-500.0,0.00012372,2]
[346917041,1735377032384,-500.0,0.00012372,2]
[346917042,1735377032394,-226.16952946,0.00012372,2]
[346917043,1735377032403,-500.0,0.00012372,2]
[346917044,1735377032413,-500.0,0.00012372,2]
[346917045,1735377032423,-500.0,0.00012372,2]
[346917046,1735377032433,-500.0,0.00012372,2]
[346917047,1735377032442,-609.37710584,0.00012372,2]
[346917048,1735377032451,-500.0,0.00012372,2]
[346917049,1735377032461,-500.0,0.00012372,2]
[346917050,1735377032470,-500.0,0.00012372,2]
[346917051,1735377032480,-500.0,0.00012372,2]
[346917052,1735377032490,-500.0,0.00012372,2]
[346917053,1735377032500,-468.70511355,0.00012372,2]
[346917054,1735377032509,-500.0,0.00012372,2]
[346917055,1735377032518,-500.0,0.00012372,2]
[346917056,1735377032529,-500.0,0.00012372,2]
[346917057,1735377032538,-500.0,0.00012372,2]
[346917058,1735377032548,-508.36235096,0.00012372,2]
[346917059,1735377032557,-500.0,0.00012372,2]
[346917060,1735377032568,-354.28041316,0.00012372,2]
[346917061,1735377032577,-252.99392729,0.00012372,2]
[346917062,1735377032587,-500.0,0.00012372,2]
[346917063,1735377032596,-500.0,0.00012372,2]
[346917064,1735377032607,-500.0,0.00012372,2]
[346917065,1735377032616,-500.0,0.00012372,2]
[346917066,1735377032626,-500.0,0.00012372,2]
[346917067,1735377032635,-500.0,0.00012372,2]
[346917068,1735377032645,-500.0,0.00012372,2]
[346917069,1735377032655,-500.0,0.00012372,2]
[346917070,1735377032665,-500.0,0.00012372,2]
[346917071,1735377032675,-500.0,0.00012372,2]
[346917072,1735377032684,-500.0,0.00012372,2]
[346917073,1735377032694,-336.12212942,0.00012372,2]
[346917074,1735377032704,-206.57,0.00012373,2]
[346917075,1735377032713,-500.0,0.00012373,2]
[346917076,1735377032723,-500.0,0.00012373,2]
[346917077,1735377032732,-500.0,0.00012373,2]
[346917078,1735377032742,-500.0,0.00012373,2]
[346917079,1735377032751,-500.0,0.00012373,2]
[346917080,1735377032760,-692.04,0.00012373,2]
[346917081,1735377032770,-500.0,0.00012373,2]
[346917082,1735377032780,-500.0,0.00012373,2]
[346917083,1735377032789,-500.0,0.00012373,2]
[346917084,1735377032798,-500.0,0.00012373,2]
[346917085,1735377032807,-500.0,0.00012373,2]
[346917086,1735377032817,-500.0,0.00012373,2]
[346917087,1735377032827,-500.0,0.00012373,2]
[346917088,1735377032837,-500.0,0.00012373,2]
[346917089,1735377032847,-500.0,0.00012373,2]
[346917090,1735377032856,-500.0,0.00012373,2]
[346917091,1735377032866,-500.0,0.00012373,2]
[346917092,1735377032877,-500.0,0.00012373,2]
[346917093,1735377032887,-500.0,0.00012373,2]
[346917094,1735377032896,-500.0,0.00012373,2]
[346917095,1735377032906,-500.0,0.00012373,2]
[346917096,1735377032915,-500.0,0.00012373,2]
[346917097,1735377032925,-500.0,0.00012373,2]
[346917098,1735377032935,-500.0,0.00012373,2]
[346917099,1735377032944,-550.72516592,0.00012373,2]
[346917100,1735377033048,-500.0,0.00012373,2]
[346917101,1735377033058,-432.78831361,0.00012373,2]
[346917102,1735377033068,-504.88510161,0.00012373,2]
[346917103,1735377033078,-500.0,0.00012373,2]
[346917104,1735377033088,-500.0,0.00012373,2]
[346917105,1735377033098,-544.1,0.00012373,2]
[346917106,1735377033110,-500.0,0.00012373,2]
[346917107,1735377033119,-500.0,0.00012373,2]
[346917108,1735377033128,-500.0,0.00012373,2]
[346917109,1735377033138,-500.0,0.00012373,2]
[346917110,1735377033148,-500.0,0.00012373,2]
[346917111,1735377033161,-500.0,0.00012373,2]
[346917112,1735377033171,-500.0,0.00012373,2]
[346917113,1735377033183,-500.0,0.00012373,2]
[346917114,1735377033193,-500.0,0.00012373,2]
[346917115,1735377033203,-500.0,0.00012373,2]
[346917116,1735377033212,-500.0,0.00012373,2]
[346917117,1735377033222,-500.0,0.00012373,2]
[346917118,1735377033232,-500.0,0.00012373,2]
[346917119,1735377033241,-500.0,0.00012373,2]
[346917120,1735377033251,-500.0,0.00012373,2]
[346917121,1735377033261,-500.0,0.00012373,2]
[346917122,1735377033271,-500.0,0.00012373,2]
[346917123,1735377033280,-500.0,0.00012373,2]
[346917124,1735377033289,-500.0,0.00012373,2]
[346917125,1735377033299,-500.0,0.00012373,2]
[346917126,1735377033308,-500.0,0.00012373,2]
[346917127,1735377033318,-500.0,0.00012373,2]
[346917128,1735377033327,-500.0,0.00012373,2]
[346917129,1735377033337,-500.0,0.00012373,2]
[346917130,1735377033346,-500.0,0.00012373,2]
[346917131,1735377033356,-500.0,0.00012373,2]
[346917132,1735377033366,-500.0,0.00012373,2]
[346917133,1735377033376,-500.0,0.00012373,2]
[346917134,1735377033385,-500.0,0.00012373,2]
[346917135,1735377033395,-500.0,0.00012373,2]
[346917136,1735377033404,-500.0,0.00012373,2]
[346917137,1735377033414,-500.0,0.00012373,2]
[346917138,1735377033423,-500.0,0.00012373,2]
[346917139,1735377033435,-500.0,0.00012373,2]
[346917140,1735377033444,-500.0,0.00012373,2]
[346917141,1735377033454,-500.0,0.00012373,2]
[346917142,1735377033463,-500.0,0.00012373,2]
[346917143,1735377033478,-500.0,0.00012373,2]
[346917144,1735377033487,-500.0,0.00012373,2]
[346917145,1735377033497,-500.0,0.00012373,2]
[346917146,1735377033506,-500.0,0.00012373,2]
[346917147,1735377033515,-500.0,0.00012373,2]
[346917148,1735377033525,-500.0,0.00012373,2]
[346917149,1735377033534,-500.0,0.00012373,2]
[346917150,1735377033544,-500.0,0.00012373,2]
[346917151,1735377033553,-520.89639917,0.00012373,2]
[346917152,1735377033563,-603.34,0.00012373,2]
[346917153,1735377033572,-500.0,0.00012373,2]
[346917154,1735377033582,-500.0,0.00012373,2]
[346917155,1735377033591,-500.0,0.00012373,2]
[346917156,1735377033600,-500.0,0.00012373,2]
[346917157,1735377033610,-500.0,0.00012373,2]
[346917158,1735377033620,-500.0,0.00012373,2]
[346917159,1735377033634,-500.0,0.00012373,2]
[346917160,1735377033643,-500.0,0.00012373,2]
[346917161,1735377033652,-500.0,0.00012373,2]
[346917162,1735377033661,-500.0,0.00012373,2]
[346917163,1735377033670,-352.23202336,0.00012373,2]
[346917164,1735377033680,-500.0,0.00012373,2]
[346917165,1735377033689,-500.0,0.00012373,2]
[346917166,1735377033699,-500.0,0.00012373,2]
[346917167,1735377033709,-504.80506325,0.00012373,2]
[346917168,1735377033719,-500.0,0.00012373,2]
[346917169,1735377033728,-500.0,0.00012373,2]
[346917170,1735377033742,-500.0,0.00012373,2]
[346917171,1735377033752,-500.0,0.00012373,2]
[346917172,1735377033762,-500.0,0.00012373,2]
[346917173,1735377033771,-500.0,0.00012373,2]
[346917174,1735377033780,-500.0,0.00012373,2]
[346917175,1735377033790,-305.22651487,0.00012373,2]
[346917176,1735377033815,-194.77348513,0.00012373,2]
[346917177,1735377033824,-500.0,0.00012373,2]
[346917178,1735377033834,-500.0,0.00012373,2]
[346917179,1735377033843,-500.0,0.00012373,2]
[346917180,1735377033853,-500.0,0.00012373,2]
[346917181,1735377033862,-504.12752646,0.00012373,2]
[346917182,1735377033874,-500.0,0.00012373,2]
[346917183,1735377033884,-502.23157829,0.00012373,2]
[346917184,1735377033893,-500.0,0.00012373,2]
[346917185,1735377033903,-454.18677326,0.00012373,2]
[346917186,1735377033915,-45.81322674,0.00012373,2]
[346917187,1735377033924,-500.0,0.00012373,2]
[346917188,1735377033934,-500.0,0.00012373,2]
[346917189,1735377033943,-500.0,0.00012373,2]
[346917190,1735377033952,-500.0,0.00012373,2]
[346917191,1735377033961,-500.0,0.00012373,2]
[346917192,1735377033971,-222.00794565,0.00012373,2]
[346917193,1735377033981,-504.0302554,0.00012373,2]
[346917194,1735377033990,-500.0,0.00012373,2]
[346917195,1735377034000,-500.0,0.00012373,2]
[346917196,1735377034010,-500.0,0.00012373,2]
[346917197,1735377034019,-500.0,0.00012373,2]
[346917198,1735377034029,-209.44887716,0.00012373,2]
[346917218,1735377037713,-500.0,0.00012373,2]
[346917220,1735377037723,-290.55112284,0.00012373,2]
[346917222,1735377037732,-500.0,0.00012373,2]
[346917224,1735377037742,-500.0,0.00012373,2]
[346917226,1735377037752,-500.0,0.00012373,2]
[346917228,1735377037761,-500.0,0.00012373,2]
[346917230,1735377037770,-500.0,0.00012373,2]
[346917232,1735377037779,-500.0,0.00012373,2]
[346917234,1735377037789,-501.09943716,0.00012373,2]
[346917236,1735377037799,-500.0,0.00012373,2]
[346917238,1735377037808,-500.0,0.00012373,2]
[346917240,1735377037818,-500.0,0.00012373,2]
[346917242,1735377037827,-500.0,0.00012373,2]
[346917244,1735377037836,-500.0,0.00012373,2]
[346917246,1735377037845,-500.0,0.00012373,2]
[346917248,1735377037855,-500.0,0.00012373,2]
[346917250,1735377037864,-500.0,0.00012373,2]
[346917252,1735377037874,-500.0,0.00012373,2]
[346917254,1735377037884,-500.0,0.00012373,2]
[346917256,1735377037893,-500.0,0.00012373,2]
[346917258,1735377037903,-500.0,0.00012373,2]
[346917260,1735377037912,-402.39045219,0.00012373,2]
[346917262,1735377037921,-166.67455544,0.00012373,2]
[346917264,1735377037930,-609.16533686,0.00012373,2]
[346917265,1735377037940,-500.0,0.00012373,2]